bitfinex/quotes_ETHUSD_20260208
["timestamp","ask_amount","ask_price","bid_price","bid_amount"]
[1770525914038,0.99691812,2080.4,2080.0,0.001]
[1770525914238,0.002,2080.2,2080.0,0.001]
[1770525917141,0.94682714,2080.1,2079.8,0.001]
[1770525918417,0.94682714,2080.0,2079.8,0.001]
[1770525919340,0.94682714,2079.9,2079.6,0.001]
[1770525919728,0.98547915,2079.9,2079.3,0.0008]
[1770525920535,2.1489324,2079.7,2079.3,0.0008]
[1770525921649,0.94682714,2079.6,2079.3,0.0008]
[1770525922232,0.94682714,2079.5,2079.0,0.001]
[1770525922563,2.14905639,2079.5,2079.0,0.001]
[1770525923258,0.94682714,2079.4,2079.0,0.001]
[1770525923928,1.20222925,2079.5,2077.9,8.97779198]
[1770525923929,0.94682714,2079.1,2077.9,8.97779198]
[1770525924147,0.94682714,2079.1,2078.5,1.20277974]
[1770525924328,0.94682714,2079.1,2078.4,2.18548901]
[1770525924655,2.14929573,2079.1,2078.4,2.18548901]
[1770525925150,0.94682714,2079.0,2078.4,0.9826832]
[1770525925352,0.94682714,2079.0,2078.3,1.2028623]
[1770525926336,0.94682714,2079.0,2078.2,2.23339747]
[1770525926337,4.16527574,2079.0,2078.2,2.23339747]
[1770525926532,0.94682714,2078.8,2078.0,1.03044394]
[1770525926738,0.94682714,2078.8,2078.0,2.18572117]
[1770525927048,0.94682714,2078.7,2078.0,2.18572117]
[1770525927244,0.94682714,2078.7,2078.0,2.18575573]
[1770525927459,0.94682714,2078.7,2078.1,2.18566074]
[1770525927864,0.94682714,2078.7,2078.1,2.18666074]
[1770525928032,4.80956256,2079.2,2078.1,2.18666074]
[1770525928033,2.14915684,2079.3,2078.4,0.9826832]
[1770525928555,0.94682714,2079.2,2078.4,0.9826832]
[1770525928852,0.94682714,2079.2,2078.6,0.9826832]
[1770525929949,0.94682714,2079.2,2078.5,2.18547367]
[1770525931667,0.94682714,2079.2,2078.6,0.9826832]
[1770525932856,2.14913023,2079.4,2078.6,0.9826832]
[1770525933169,0.94682714,2079.3,2078.6,0.9826832]
[1770525934068,0.94682714,2079.3,2078.7,1.20267474]
[1770525934473,0.94682714,2079.3,2078.7,2.18535794]
[1770525934637,0.94682714,2079.5,2078.7,2.18535794]
[1770525934837,0.94682714,2079.5,2078.8,0.9826832]
[1770525935374,0.94882714,2079.7,2078.8,0.9826832]
[1770525935578,0.94882714,2079.7,2079.0,0.9416349]
[1770525935778,0.002,2079.7,2079.0,0.9416349]
[1770525935966,0.002,2079.7,2079.1,2.14407826]
[1770525936470,0.94400073,2079.7,2079.1,2.14407826]
[1770525939898,0.94400073,2079.7,2079.3,0.001]
[1770525943179,0.002,2079.7,2079.3,0.001]
[1770525943486,0.002,2079.7,2079.3,0.9426349]
[1770525943671,0.002,2080.2,2079.8,0.9416349]
[1770525944564,0.002,2080.2,2079.9,1.20198086]
[1770525944880,0.002,2080.2,2079.9,0.9416349]
[1770525945846,0.002,2080.2,2080.0,0.9416349]
[1770525946664,0.002,2080.2,2079.8,1.20200511]
[1770525946665,0.002,2080.2,2079.9,4.80772771]
[1770525946964,0.94600073,2080.2,2079.7,1.20209619]
[1770525947170,0.004,2080.2,2079.8,1.20203491]
[1770525948889,0.94600073,2080.2,2079.6,1.20211057]
[1770525951872,0.002,2080.0,2079.6,1.20211057]
[1770525954181,0.004,2080.0,2079.5,1.2021895]
[1770525955413,0.94600073,2080.0,2079.5,1.20219229]
[1770525955702,0.94600073,2080.0,2079.3,4.81016887]
[1770525956007,0.94200073,2079.9,2079.3,1.2033277]
[1770525956173,0.94200073,2079.9,2079.3,2.1449626]
[1770525957769,0.002,2079.8,2079.3,2.1449626]
[1770525957967,0.94400073,2079.8,2079.3,1.2033277]
[1770525958917,0.002,2079.8,2079.3,1.2033277]
[1770525959091,0.002,2079.8,2079.3,2.1449626]
[1770525959282,0.002,2079.8,2079.4,0.9416349]
[1770525960312,0.002,2079.8,2079.5,1.20221207]
[1770525962015,0.94400073,2080.0,2079.5,1.20221207]
[1770525962193,0.002,2079.9,2079.5,1.20221207]
[1770525963207,0.002,2079.9,2079.4,2.14386472]
[1770525963606,0.94400073,2079.9,2079.4,1.20222982]
[1770525964010,0.94400073,2079.9,2079.7,0.001]
[1770525966319,1.01189038,2079.8,2079.5,0.001]
[1770525966620,1.01289038,2079.8,2079.3,0.001]
[1770525968733,1.01189038,2079.6,2079.3,0.001]
[1770525969232,1.01289038,2079.5,2079.3,0.001]
[1770525970230,1.01189038,2079.5,2079.3,0.001]
[1770525973031,0.001,2079.4,2079.3,0.001]
[1770525973614,0.93671987,2079.8,2079.3,0.001]
[1770525973828,0.001,2079.7,2079.3,0.001]
[1770525975328,0.93771987,2079.7,2079.3,0.001]
[1770525976526,0.93671987,2079.5,2079.0,0.001]
[1770525976929,0.93671987,2079.3,2079.0,0.001]
[1770525977451,0.001,2079.2,2079.0,0.001]
[1770525977836,0.93771987,2079.2,2079.0,0.001]
[1770525978721,0.93771987,2079.2,2078.8,0.001]
[1770525979916,0.001,2079.2,2078.8,0.97473359]
[1770525980556,0.04065201,2079.7,2078.9,0.97373359]
[1770525980557,2.14084708,2079.7,2078.9,0.97373359]
[1770525981133,0.93671987,2079.6,2078.9,0.97373359]
[1770525982425,0.93671987,2079.6,2079.0,1.2025012]
[1770525983537,0.001,2079.5,2079.0,1.2025012]
[1770525984741,0.93771987,2079.5,2078.9,2.17628081]
[1770525985044,0.93671987,2079.3,2078.8,0.001]
[1770525986036,0.001,2079.2,2078.8,0.001]
[1770525986236,0.93771987,2079.4,2078.8,0.001]
[1770525987535,2.14001589,2079.4,2078.8,0.001]
[1770525989146,2.14001589,2079.4,2079.0,0.001]
[1770525989342,0.001,2079.4,2079.0,0.97473359]
[1770525989657,0.002,2079.2,2079.0,2.17722863]
[1770525992549,0.002,2079.2,2079.0,1.20349504]
[1770525993955,0.003,2079.2,2079.0,2.17722863]
[1770525994963,0.003,2079.2,2079.0,0.001]
[1770525996535,0.94897491,2079.2,2079.0,0.001]
[1770525996751,0.94797491,2079.2,2078.8,0.001]
[1770525997625,0.94597491,2079.1,2078.8,0.001]
[1770526000249,0.94597491,2079.0,2078.8,0.001]
[1770526002050,2.1484826,2079.0,2078.8,0.001]
[1770526002635,2.1504826,2079.0,2078.8,0.001]
[1770526006862,0.94597491,2078.9,2078.8,0.001]
[1770526010861,0.94597491,2078.9,2078.6,0.0008]
[1770526011439,2.14853871,2078.9,2078.6,0.0008]
[1770526011650,0.94597491,2078.8,2078.6,0.0008]
[1770526013071,9.01973711,2079.0,2078.6,0.0008]
[1770526013072,0.94797491,2079.0,2078.6,0.0008]
[1770526013283,0.002,2079.0,2078.6,0.0008]
[1770526013838,1.20451013,2079.0,2078.6,0.0008]
[1770526014055,2.15048504,2079.0,2078.6,0.0008]
[1770526015366,2.15048504,2079.0,2078.8,0.001]
[1770526015568,0.002,2078.8,2078.6,0.0008]
[1770526015766,0.002,2078.8,2078.5,0.0008]
[1770526015973,0.002,2078.8,2078.5,0.0018]
[1770526016956,0.94797491,2078.8,2078.5,0.0018]
[1770526017770,0.002,2078.8,2078.5,0.0018]
[1770526018070,0.002,2078.8,2078.5,0.9958545]
[1770526018268,0.002,2079.2,2078.7,0.9940545]
[1770526018438,1.20639055,2079.2,2078.7,0.9940545]
[1770526019570,2.15236546,2079.2,2078.5,0.9958545]
[1770526020270,2.15236546,2079.2,2078.5,2.19864412]
[1770526020774,2.15236546,2079.2,2078.6,0.9940545]
[1770526021978,2.15036546,2079.2,2078.6,0.9940545]
[1770526022184,0.002,2079.1,2078.6,0.9940545]
[1770526022351,0.002,2079.1,2078.7,0.9940545]
[1770526022976,0.002,2079.2,2078.9,0.9940545]
[1770526023179,0.002,2079.4,2079.0,0.9940545]
[1770526023481,0.004,2079.4,2079.0,0.9940545]
[1770526024679,0.004,2079.4,2079.1,0.9940545]
[1770526028452,0.002,2079.2,2079.1,0.9940545]
[1770526029081,0.002,2079.2,2079.0,1.20348641]
[1770526029280,0.002,2079.2,2079.0,0.001]
[1770526029464,1.00616924,2079.2,2078.7,1.20263727]
[1770526030365,0.002,2079.2,2078.7,1.20263727]
[1770526030766,0.002,2079.2,2078.7,2.19766171]
[1770526032886,0.92755107,2079.2,2078.7,1.20263727]
[1770526033092,0.92555107,2079.1,2078.5,1.20458189]
[1770526033257,0.92555107,2079.1,2078.5,2.13633784]
[1770526034000,0.002,2079.2,2078.6,2.13448394]
[1770526035060,0.92755107,2079.2,2078.6,2.13448394]
[1770526037786,0.92555107,2079.1,2078.6,1.20272799]
[1770526037985,0.92555107,2079.1,2078.5,1.2045624]
[1770526041389,0.92555107,2079.1,2078.7,0.001]
[1770526044210,0.002,2079.2,2078.7,0.93275595]
[1770526046395,0.002,2079.2,2078.7,2.13539355]
[1770526053301,0.002,2079.0,2078.7,2.13539355]
[1770526053700,0.002,2079.0,2078.8,0.93175595]
[1770526055023,0.002,2079.2,2078.9,4.17030341]
[1770526055211,0.002,2079.4,2079.0,0.93175595]
[1770526055373,0.002,2079.4,2079.1,2.13419931]
[1770526055773,0.002,2079.4,2079.1,0.93175595]
[1770526056114,0.002,2079.4,2079.0,1.20249584]
[1770526056701,0.002,2079.4,2079.0,2.1889229]
[1770526061195,0.002,2079.4,2079.1,0.98642706]
[1770526061519,0.002,2079.4,2079.2,0.98642706]
[1770526061703,1.2040254,2079.9,2079.3,0.98642706]
[1770526061704,0.002,2079.9,2079.3,0.98642706]
[1770526062724,0.002,2079.9,2079.4,1.20226988]
[1770526063419,0.002,2079.9,2079.4,2.18869694]
[1770526065224,0.002,2079.5,2079.4,2.18869694]
[1770526065424,0.002,2079.9,2079.4,2.18869694]
[1770526066693,0.002,2079.9,2079.4,6.35900035]
[1770526067500,0.002,2079.9,2079.5,0.98642706]
[1770526069525,0.002,2079.9,2079.6,2.18858132]
[1770526070818,0.002,2080.0,2079.6,6.35888473]
[1770526072505,0.002,2080.0,2079.6,1.20215426]
[1770526072828,0.91955472,2080.0,2079.3,1.20229325]
[1770526073002,0.91955472,2080.0,2079.4,1.20226591]
[1770526074027,0.91955472,2080.0,2079.5,1.20220929]
[1770526075099,0.91755472,2079.9,2079.3,1.20229278]
[1770526076126,0.95620673,2079.9,2079.2,0.001]
[1770526076338,0.95620673,2079.9,2079.2,1.20337777]
[1770526077118,0.91755472,2079.8,2079.2,0.001]
[1770526077432,0.91755472,2079.8,2079.6,0.001]
[1770526077743,0.91955472,2079.8,2079.6,0.001]
[1770526081903,0.91755472,2079.7,2079.6,0.001]
[1770526086226,0.91755472,2079.7,2079.4,0.001]
[1770526090509,0.91755472,2079.7,2079.6,0.001]
[1770526091338,0.91955472,2079.7,2079.6,0.001]
[1770526092128,0.91955472,2079.7,2079.4,0.001]
[1770526097822,0.002,2079.7,2079.4,0.001]
[1770526100945,0.002,2079.7,2079.4,0.92948783]
[1770526102925,0.002,2079.7,2079.6,0.001]
[1770526103138,0.002,2079.5,2079.4,0.92948783]
[1770526104056,0.002,2079.5,2079.4,2.13175771]
[1770526104837,0.002,2079.5,2079.4,0.92948783]
[1770526109661,0.002,2079.5,2079.4,2.13175771]
[1770526110060,0.002,2079.5,2079.4,1.20326988]
[1770526111156,0.002,2079.5,2079.4,0.001]
[1770526118081,0.002,2079.7,2079.4,0.001]
[1770526119969,0.91499949,2079.7,2079.4,0.001]
[1770526123163,0.002,2079.7,2079.4,0.001]
[1770526124876,0.002,2079.7,2079.4,1.20326988]
[1770526127278,0.002,2079.7,2079.6,0.001]
[1770526127478,0.002,2079.5,2079.4,1.20326988]
[1770526127678,0.002,2079.7,2079.4,1.20326988]
[1770526129269,0.002,2079.7,2079.4,0.001]
[1770526139028,0.002,2079.7,2079.6,0.001]
[1770526139176,0.002,2080.0,2079.7,0.95565486]
[1770526139509,0.0028,2080.1,2079.8,0.95565486]
[1770526139676,0.0028,2080.1,2079.6,5.12555822]
[1770526142897,0.0028,2080.1,2079.7,1.20209645]
[1770526143099,0.0028,2080.1,2079.7,2.15775131]
[1770526143485,0.0028,2080.1,2079.7,1.20209645]
[1770526144504,0.0028,2080.1,2079.7,2.15775131]
[1770526145102,0.91499949,2080.3,2079.9,0.95565486]
[1770526145103,1e-08,2080.3,2079.9,0.95565486]
[1770526147882,1e-08,2080.3,2080.0,1.20192307]
[1770526149223,1e-08,2080.3,2080.0,2.12465593]
[1770526150490,1e-08,2080.3,2080.1,0.001]
[1770526153413,0.99583919,2080.3,2079.9,0.001]
[1770526153710,0.99583919,2080.3,2079.8,1.20200681]
[1770526153894,0.99583919,2080.3,2079.8,1.20300681]
[1770526154411,0.99583919,2080.3,2079.9,1.20197857]
[1770526154916,0.99583919,2080.3,2079.8,1.2029941]
[1770526156826,0.99583919,2080.3,2079.8,0.001]
[1770526161309,0.99583918,2080.2,2079.6,1.20214386]
[1770526161830,0.99583918,2080.2,2079.5,0.001]
[1770526163232,0.99583918,2080.2,2080.0,0.001]
[1770526163431,0.99583918,2080.0,2079.5,0.001]
[1770526163636,0.99583918,2080.0,2079.8,0.001]
[1770526164417,0.002,2080.1,2079.8,0.001]
[1770526164629,0.99783918,2080.1,2079.8,0.001]
[1770526165235,0.002,2080.1,2079.8,0.002]
[1770526165640,0.002,2080.1,2079.8,0.93678148]
[1770526166607,0.002,2080.1,2079.9,1.20198086]
[1770526167023,0.002,2080.1,2080.0,0.001]
[1770526167652,0.001,2080.1,2079.8,2.1377783]
[1770526167839,1e-08,2080.3,2080.0,0.93478148]
[1770526169140,1e-08,2080.3,2080.1,1.20186529]
[1770526175052,0.002,2080.4,2080.1,1.20186529]
[1770526176020,0.002,2080.3,2080.1,1.20186529]
[1770526181132,0.002,2080.4,2080.1,1.20186529]
[1770526182052,0.96175891,2080.6,2080.1,1.20186529]
[1770526187240,0.002,2080.8,2080.3,0.91892429]
[1770526187567,0.95975891,2081.0,2080.4,4.16588608]
[1770526187771,0.95975891,2081.0,2080.4,0.91892429]
[1770526187971,0.002,2080.4,2080.3,0.001]
[1770526188263,0.96175891,2080.9,2080.3,0.001]
[1770526188264,0.002,2080.6,2080.3,0.001]
[1770526189555,0.002,2080.6,2080.3,2.12167403]
[1770526189861,0.96175891,2080.9,2080.3,2.12167403]
[1770526190446,0.96175891,2080.9,2080.3,1.20274974]
[1770526191983,0.96175891,2080.9,2080.3,0.001]
[1770526192158,0.95975891,2080.8,2080.3,0.001]
[1770526194074,0.95975891,2080.7,2080.3,0.001]
[1770526198349,0.95975891,2080.4,2080.0,0.001]
[1770526198966,0.95975891,2080.6,2080.0,0.001]
[1770526199366,2.16136179,2080.6,2080.0,0.001]
[1770526199968,2.16136179,2080.6,2080.5,0.001]
[1770526200184,0.95975891,2080.6,2080.0,0.001]
[1770526200383,0.95975891,2080.6,2080.3,0.001]
[1770526201280,2.16133761,2080.6,2080.3,0.001]
[1770526201489,0.95975891,2080.5,2080.3,0.001]
[1770526201680,0.95975891,2080.5,2080.0,0.001]
[1770526203268,0.002,2080.7,2080.1,0.91892429]
[1770526203464,0.96175891,2080.7,2080.1,2.1207537]
[1770526205268,0.002,2080.7,2080.3,0.91892429]
[1770526205488,0.002,2080.7,2080.5,0.91892429]
[1770526205879,0.96175891,2081.1,2080.5,0.91892429]
[1770526206683,0.96175891,2081.1,2080.6,5.13325064]
[1770526206684,0.002,2081.1,2080.6,5.13325064]
[1770526206986,0.002,2081.1,2080.6,0.96736456]
[1770526207486,0.002,2081.1,2080.6,5.13325064]
[1770526207788,0.002,2081.1,2080.7,1.20151871]
[1770526208584,0.002,2081.1,2080.7,2.16888327]
[1770526212664,0.002,2081.1,2080.8,0.95551672]
[1770526213190,0.002,2080.9,2080.8,0.95551672]
[1770526214295,0.002,2081.1,2080.8,2.15692356]
[1770526217975,0.002,2081.1,2080.8,1.20140684]
[1770526220993,0.002,2081.1,2080.8,2.15692356]
[1770526221870,0.002,2081.1,2080.9,0.95551672]
[1770526223995,0.002,2081.4,2081.0,2.15686222]
[1770526224199,0.002,2081.5,2081.2,0.95551672]
[1770526224380,0.002,2081.5,2081.1,0.95551672]
[1770526225971,0.002,2081.2,2081.1,2.1568045]
[1770526226171,0.002,2081.5,2081.1,2.1568045]
[1770526226670,0.002,2081.4,2081.1,2.1568045]
[1770526227984,0.002,2081.4,2081.2,0.95551672]
[1770526228698,0.002,2081.5,2081.2,0.95551672]
[1770526231178,0.002,2081.5,2081.3,1.20117234]
[1770526231681,0.98259905,2081.4,2081.0,0.001]
[1770526231887,0.98259905,2081.4,2080.8,1.20245495]
[1770526232098,0.98259905,2081.2,2080.8,1.20245495]
[1770526232776,0.98259905,2081.2,2080.5,0.001]
[1770526232974,4.16518364,2081.5,2080.5,0.001]
[1770526232975,0.98259905,2081.0,2080.5,0.001]
[1770526233420,0.98259905,2080.9,2080.5,0.001]
[1770526239120,0.98259905,2080.9,2080.7,0.001]
[1770526239494,0.98459905,2080.9,2080.7,0.001]
[1770526241923,0.002,2080.9,2080.7,0.001]
[1770526243230,0.96211496,2080.9,2080.7,0.001]
[1770526247702,0.002,2080.9,2080.7,0.001]
[1770526253742,0.96211496,2080.9,2080.7,0.001]
[1770526260454,0.002,2081.1,2080.8,0.95711152]
[1770526260823,0.002,2081.1,2080.9,1.20140323]
[1770526263247,0.002,2081.1,2080.9,1.20240323]
[1770526263458,0.002,2081.1,2080.9,2.15951475]
[1770526265949,0.002,2081.1,2080.9,1.20240323]
[1770526266124,0.004,2081.1,2080.9,1.20240323]
[1770526266325,0.004,2081.1,2080.6,0.001]
[1770526266326,0.93641739,2081.1,2080.6,0.001]
[1770526266528,0.93441739,2080.9,2080.6,0.001]
[1770526266956,0.001,2080.8,2080.6,0.001]
[1770526270730,0.002,2081.1,2080.6,0.92366767]
[1770526270930,0.001,2080.9,2080.6,0.92366767]
[1770526272959,0.001,2080.9,2080.7,1.20151871]
[1770526273832,0.002,2081.1,2080.7,2.16485949]
[1770526274034,0.001,2081.0,2080.7,2.16485949]
[1770526274448,0.002,2081.1,2080.7,2.16485949]
[1770526274650,0.002,2081.1,2080.8,0.96334078]
[1770526275262,0.002,2081.1,2080.9,1.20140323]
[1770526277043,0.002,2081.1,2080.8,0.96434078]
[1770526277044,0.002,2081.1,2080.8,1.202417]
[1770526277252,0.001,2081.0,2080.8,0.001]
[1770526283750,0.91950008,2081.0,2080.8,0.001]
[1770526284068,0.91850008,2081.0,2080.6,1.20253244]
[1770526285347,0.91850008,2081.0,2080.6,0.001]
[1770526287282,0.91850008,2081.0,2080.8,0.001]
[1770526287786,0.92050008,2081.0,2080.8,0.001]
[1770526290551,0.002,2081.0,2080.8,0.96434078]
[1770526290750,2.12234015,2081.6,2080.9,0.96334078]
[1770526290952,1.2038599,2081.5,2080.9,0.96334078]
[1770526291481,2.12235998,2081.5,2080.9,0.96334078]
[1770526292766,0.91850008,2081.4,2080.8,0.001]
[1770526293166,0.0028,2081.5,2080.9,0.96334078]
[1770526295585,0.0028,2081.5,2081.0,2.10729146]
[1770526299287,0.97161172,2081.5,2081.0,1.2013455]
[1770526299967,0.97161172,2081.5,2081.1,0.001]
[1770526300297,0.002,2081.3,2081.1,0.001]
[1770526300672,0.002,2081.3,2081.1,0.90694596]
[1770526301060,0.002,2081.3,2081.1,0.001]
[1770526308894,0.002,2081.3,2081.1,0.90694596]
[1770526311207,0.0028,2081.5,2081.1,0.001]
[1770526311372,0.97161172,2081.5,2080.9,0.001]
[1770526312871,0.97161172,2081.5,2080.9,1.20239837]
[1770526313073,0.0028,2081.5,2081.0,5.36515849]
[1770526313312,0.0028,2081.5,2081.1,0.90694596]
[1770526313505,0.002,2081.3,2081.1,0.90694596]
[1770526313880,0.002,2081.3,2081.1,0.001]
[1770526314907,0.97081172,2081.3,2081.1,0.001]
[1770526316314,0.0028,2081.5,2081.1,0.90794596]
[1770526316490,0.002,2081.5,2081.1,0.90794596]
[1770526319114,0.002,2081.5,2081.2,1.20123005]
[1770526319686,0.002,2081.5,2081.3,0.001]
[1770526320320,0.002,2081.5,2081.4,0.001]
[1770526320617,0.002,2081.5,2081.3,0.001]
[1770526320993,0.002,2081.5,2081.4,0.001]
[1770526321409,0.002,2081.5,2081.2,1.20123005]
[1770526321636,0.002,2081.5,2081.3,0.001]
[1770526322702,0.002,2081.5,2081.1,1.20224912]
[1770526323012,0.002,2081.5,2081.2,0.001]
[1770526323899,0.002,2081.5,2081.3,0.90594596]
[1770526324113,0.002,2081.5,2081.2,4.16481461]
[1770526324114,0.002,2081.8,2081.5,0.90594596]
[1770526324626,0.002,2081.8,2081.6,0.001]
[1770526325134,0.97081172,2081.8,2081.3,0.001]
[1770526325425,0.002,2081.8,2081.3,2.1091183]
[1770526326024,0.002,2081.5,2081.3,2.1091183]
[1770526329719,0.002,2081.8,2081.4,0.9717691]
[1770526331616,0.002,2081.8,2081.5,1.20105693]
[1770526333420,0.002,2081.8,2081.3,1.20217234]
[1770526334438,0.002,2081.8,2081.3,2.17889624]
[1770526336125,0.002,2081.8,2081.4,0.9767239]
[1770526337744,0.99819821,2081.8,2081.3,1.20217234]
[1770526338335,0.99819821,2081.8,2081.5,0.001]
[1770526338840,0.99819821,2081.6,2081.3,0.001]
[1770526341613,0.99619821,2081.5,2081.3,0.001]
[1770526344316,0.002,2081.6,2081.3,0.002]
[1770526346543,0.002,2081.6,2081.3,1.20317234]
[1770526349151,0.99819821,2081.6,2081.3,1.20317234]
[1770526349340,0.002,2081.6,2081.3,1.20317234]
[1770526350824,0.002,2081.8,2081.4,0.9767239]
[1770526351029,0.002,2081.8,2081.5,0.001]
[1770526351230,0.002,2081.8,2081.5,0.002]
[1770526351831,0.002,2081.8,2081.5,0.001]
[1770526351832,0.002,2081.6,2081.5,0.001]
[1770526352249,0.002,2081.6,2081.5,0.002]
[1770526353018,0.002,2081.8,2081.5,1.20305693]
[1770526360251,0.002,2081.8,2081.5,1.20205693]
[1770526360431,0.002,2081.8,2081.6,0.001]
[1770526360753,0.93624907,2081.8,2081.6,0.001]
[1770526364158,0.93624907,2081.8,2081.7,0.001]
[1770526364543,0.002,2081.8,2081.7,0.001]
[1770526370140,0.002,2081.8,2081.7,0.002]
[1770526390403,0.002,2081.8,2081.7,0.001]
[1770526390881,0.002,2081.8,2081.7,0.002]
[1770526392462,0.002,2081.8,2081.5,0.001]
[1770526394692,0.93503078,2081.8,2081.5,0.001]
[1770526396395,0.002,2081.8,2081.5,0.001]
[1770526401296,0.002,2081.8,2081.5,2.12730147]
[1770526401800,0.002,2081.8,2081.7,0.001]
[1770526403579,0.002,2081.8,2081.7,1.20194153]
[1770526404401,0.002,2081.8,2081.7,2.12718607]
[1770526405281,0.93303078,2082.5,2081.7,1.20194153]
[1770526405477,0.93303078,2082.5,2081.7,2.12718607]
[1770526407577,0.93303078,2082.5,2081.8,0.92524454]
[1770526407791,0.93303078,2082.6,2081.8,0.92524454]
[1770526408989,0.93303078,2082.5,2081.7,1.20194153]
[1770526409679,0.93303078,2082.3,2081.7,0.001]
[1770526414210,0.002,2082.1,2081.7,0.001]
[1770526415583,0.002,2082.1,2081.8,0.91918951]
[1770526417724,0.002,2082.1,2081.9,1.20082616]
[1770526421090,0.90302178,2082.1,2081.8,1.20084025]
[1770526421591,0.90302178,2082.1,2081.7,1.20190958]
[1770526422205,0.90302178,2082.1,2081.7,0.001]
[1770526427815,0.90302178,2082.1,2081.9,0.001]
[1770526429423,0.002,2082.1,2081.9,0.001]
[1770526433837,0.90302178,2082.1,2081.9,0.001]
[1770526444841,0.002,2082.1,2081.9,0.001]
[1770526450039,0.002,2082.1,2081.9,1.00062676]
[1770526453437,0.002,2082.1,2081.9,2.20143432]
[1770526454449,0.002,2082.3,2081.9,2.19615046]
[1770526454650,0.002,2082.3,2081.9,1.20180756]
[1770526454843,0.95036781,2082.3,2081.9,0.001]
[1770526455251,0.95036781,2082.3,2081.9,1.20182557]
[1770526455628,0.95036781,2082.3,2081.9,0.001]
[1770526456029,0.94836781,2082.2,2081.9,0.001]
[1770526456551,0.94836781,2082.2,2081.7,0.001]
[1770526456849,0.98701982,2082.2,2081.7,0.001]
[1770526457355,0.98701982,2082.2,2081.6,0.001]
[1770526457560,0.94836781,2082.1,2081.6,0.001]
[1770526459353,2.15100263,2082.3,2081.6,0.001]
[1770526460354,0.95036781,2082.3,2081.6,1.20199923]
[1770526460760,2.15096338,2082.3,2081.6,1.20199923]
[1770526461835,1.20259557,2082.3,2081.6,1.20199923]
[1770526462035,0.94836781,2082.2,2081.6,1.20199923]
[1770526463446,0.94836781,2082.2,2081.6,2.19634213]
[1770526464970,0.94836781,2082.2,2081.8,0.001]
[1770526465146,0.002,2082.1,2081.8,0.001]
[1770526472760,0.94836781,2081.9,2081.6,0.001]
[1770526476794,0.94836781,2081.9,2081.8,0.001]
[1770526478863,0.94836781,2081.9,2081.6,0.001]
[1770526479255,0.99698404,2081.7,2081.3,0.001]
[1770526481385,0.99698404,2081.9,2081.3,0.001]
[1770526482978,0.99698404,2081.8,2081.3,0.001]
[1770526487499,0.99698404,2081.7,2081.3,0.001]
[1770526488372,0.99698404,2081.7,2081.5,0.001]
[1770526488574,0.99898404,2081.7,2081.3,0.001]
[1770526489107,0.99898404,2081.7,2081.1,0.001]
[1770526489108,0.99698404,2081.5,2081.1,0.001]
[1770526489980,0.99698404,2081.4,2081.1,0.001]
[1770526490979,6.39577811,2081.6,2081.1,0.001]
[1770526491301,0.002,2081.7,2081.1,0.93976621]
[1770526491884,1.20294211,2081.7,2081.1,0.93976621]
[1770526492098,0.002,2081.7,2081.2,0.93876621]
[1770526496098,0.002,2081.7,2081.1,2.1410036]
[1770526497012,0.99898404,2081.7,2081.1,2.1410036]
[1770526500730,0.002,2081.7,2081.2,0.93876621]
[1770526500887,0.002,2081.7,2081.5,0.93876621]
[1770526502195,0.002,2081.9,2081.7,0.93876621]
[1770526502904,0.002,2081.9,2081.8,1.20088385]
[1770526504116,0.002,2081.9,2081.8,2.13965006]
[1770526504411,0.002,2081.9,2081.8,0.93876621]
[1770526504623,0.002,2081.9,2081.7,1.20090109]
[1770526504816,0.002,2081.9,2081.7,2.1396673]
[1770526505021,0.002,2081.9,2081.8,0.93876621]
[1770526506192,0.002,2081.9,2081.7,2.11579488]
[1770526506506,0.002,2081.9,2081.8,0.91489379]
[1770526507217,0.002,2081.9,2081.6,0.91489379]
[1770526509110,0.002,2081.9,2081.7,2.11583532]
[1770526510613,0.002,2081.9,2081.8,0.91489379]
[1770526510922,0.002,2082.1,2081.8,0.91489379]
[1770526511417,0.002,2082.1,2081.9,1.20082616]
[1770526513035,0.002,2082.1,2081.9,2.10958861]
[1770526513214,0.002,2082.1,2082.0,0.90876245]
[1770526513521,0.002,2082.1,2082.0,2.10953094]
[1770526514724,0.002,2082.6,2082.3,0.90876245]
[1770526516329,0.002,2082.6,2082.1,0.90876245]
[1770526516532,0.002,2082.6,2082.2,1.20065315]
[1770526520930,0.002,2082.6,2082.2,2.1094156]
[1770526522027,0.002,2082.6,2082.3,0.90876245]
[1770526524043,0.002,2082.6,2082.4,1.20053784]
[1770526526245,0.002,2082.6,2082.4,1.20153784]
[1770526527640,0.002,2082.6,2082.4,2.11030029]
[1770526528323,0.002,2082.8,2082.4,2.11030029]
[1770526529248,0.99723982,2082.8,2082.4,0.001]
[1770526538253,0.002,2082.6,2082.4,0.001]
[1770526540664,0.002,2082.6,2082.4,0.90546669]
[1770526540825,0.002,2083.0,2082.6,0.90446669]
[1770526541032,0.002,2083.0,2082.4,0.001]
[1770526541261,0.97766395,2083.0,2082.4,0.001]
[1770526544933,0.002,2083.0,2082.4,0.90546669]
[1770526545330,0.97766395,2083.0,2082.4,0.90546669]
[1770526546347,0.97766395,2083.0,2082.4,0.001]
[1770526550678,0.97766395,2083.0,2082.6,0.001]
[1770526551051,0.002,2082.8,2082.6,0.001]
[1770526555752,0.97766395,2082.8,2082.4,0.001]
[1770526557392,0.97566395,2082.7,2082.4,0.001]
[1770526563852,0.97566395,2082.7,2082.6,0.001]
[1770526564056,0.002,2082.8,2082.4,0.90546669]
[1770526564283,0.002,2082.8,2082.5,0.90446669]